{"text_format":"3","workbook":"xlsx","n_sheets":9,"sheets":["LEGGIMI","SCELTA","Cerchio","Quadrato","Rettangolo","Rombo","Triangolo","Pentagono","Esagono"],"not_rendered":{"images":9,"macros":1},"read":"whole","date_system":"1900"}

{"sheet":"LEGGIMI","index":0,"n_rows":42,"n_cols":2,"rows_kept":42}
{"$rows_empty":30}
[null,"NB: le celle sono protette per evitare cancellazioni accidentali e/o modifiche"]
[null,"involontarie, se per errore vengono cancellate e/o modificate le formule nelle"]
[null,"celle, il programma non funzionerebbe più correttamente."]
[]
[null,"Per aggiungere, migliorare e/o modificare le formule esistenti, togliere la protezione alle celle:"]
[null,"Posizionarsi con il mouse su \"strumenti\" - \"protezione\" - \"rimuovi protezione dal foglio\"."]
[null,"Non è inserita nessuna password, quindi è facile sproteggere il foglio ed apportarvi modifiche."]
[null,"Per maggior sicurezza, dopo la modifica, reinserire la protezione nel foglio modificato."]
[]
[null,"PS: Questo elementare programma, può servire per imparare ad inserire: Word Art, Etrichette,"]
[null,"Semplici disegni, Formule nelle celle, Collegamenti ipertestuali ecc. ecc. - BUON LAVORO"]
[null,"e-mail: vigma53@gmail.com"]

{"sheet":"SCELTA","index":1,"n_rows":0,"n_cols":0,"rows_kept":0}

{"sheet":"Cerchio","index":2,"n_rows":26,"n_cols":11,"rows_kept":26,"merged":[[3,3,3,7],[14,1,14,4],[14,5,14,6],[14,8,14,9],[23,1,23,4],[23,5,23,6],[23,8,23,9]]}
[]
[]
[]
[{"$nulls":3},"FIGURE PIANE"]
[]
[null,null,"Raggio"]
[]
[]
[null,"Diametro"]
[]
[]
[]
[]
[]
[null,"CERCHIO",{"$nulls":3},"Inserisci il RAGGIO",null,25,"AREA = ",null,{"$f":"H15*H15*3.14","v":1962.5}]
[]
[null,"L'AREA è uguale a RAGGIO*RAGGIO*p(Pigreco=3,14)"]
[]
[]
[]
[]
[]
[]
[null,"CIRCONFERENZA",{"$nulls":3},"Inserisci il RAGGIO",null,25,"PERIMETRO =",null,{"$f":"H24*6.28","v":157}]
[]
[null,"Il PERIMETRO è uguale a RAGGIO*2p(Pigreco=3,14)"]

{"sheet":"Quadrato","index":3,"n_rows":30,"n_cols":12,"rows_kept":30,"merged":[[3,4,3,8],[14,2,14,5],[14,6,14,7],[14,9,14,10],[25,2,25,5],[25,6,25,7],[25,9,25,10]]}
[]
[]
[]
[{"$nulls":4},"FIGURE PIANE"]
[]
[{"$nulls":3},"Lato"]
[]
[]
[null,null,"Lato"]
[]
[]
[]
[]
[]
[null,null,"QUADRATO",{"$nulls":3},"Inserisci il LATO",null,25,"AREA = ",null,{"$f":"I15*I15","v":625}]
[]
[null,null,"L'AREA è uguale a LATO*LATO"]
[]
[null,null,"Il LATO è uguale alla √AREA (radice quadrata dell'Area)",{"$nulls":5},{"$f":"SQRT(L15)","v":25}]
[]
[null,null,"La DIAGONALE è uguale alla √AREAx2",{"$nulls":5},{"$f":"SQRT(L15*2)","v":{"v":35.35533905932738,"d":"35.36"}}]
[]
[]
[]
[]
[null,null,"QUADRATO",{"$nulls":3},"Inserisci il LATO",null,25,"PERIMETRO =",null,{"$f":"I26*4","v":100}]
[]
[null,null,"Il PERIMETRO è uguale a LATO*4"]
[]
[null,null,"Il LATO è uguale al PERIMETRO/4",{"$nulls":5},{"$f":"L26/4","v":25}]

{"sheet":"Rettangolo","index":4,"n_rows":27,"n_cols":12,"rows_kept":27,"merged":[[3,4,3,8],[11,6,11,7],[12,2,12,5],[12,9,12,10],[13,6,13,7],[20,6,20,7],[21,2,21,5],[21,9,21,10],[22,6,22,7]]}
[]
[]
[]
[{"$nulls":4},"FIGURE PIANE"]
[]
[{"$nulls":3},"      Altezza"]
[]
[]
[null,null,"Base"]
[]
[]
[{"$nulls":6},"Inserisci la BASE",null,40]
[null,null,"RETTANGOLO",{"$nulls":6},"AREA = ",null,{"$f":"I12*I14","v":400}]
[{"$nulls":6},"Inserisci l'ALTEZZA",null,10]
[null,null,"L'AREA è uguale alla BASE*ALTEZZA"]
[]
[null,null,"La BASE è uguale all'AREA/ALTEZZA",{"$nulls":5},{"$f":"L13/I14","v":40}]
[null,null,"L'ALTEZZA è uguale all'AREA/BASE",{"$nulls":5},{"$f":"L13/I12","v":10}]
[]
[]
[{"$nulls":6},"Inserisci la BASE",null,40]
[null,null,"RETTANGOLO",{"$nulls":6},"PERIMETRO =",null,{"$f":"(I21*2)+(I23*2)","v":100}]
[{"$nulls":6},"Inserisci l'ALTEZZA",null,10]
[null,null,"Il PERIMETRO è uguale alla (BASE+ALTEZZA)*2"]
[]
[null,null,"La BASE è uguale al PERIMETRO/2-ALTEZZA",{"$nulls":5},{"$f":"L22/2-I23","v":40}]
[null,null,"L'ALTEZZA è uguale al PERIMETRO/2-BASE",{"$nulls":5},{"$f":"L22/2-I21","v":10}]

{"sheet":"Rombo","index":5,"n_rows":29,"n_cols":12,"rows_kept":29,"merged":[[3,4,3,8],[13,6,13,7],[14,2,14,5],[14,9,14,10],[15,6,15,7],[23,2,23,5],[23,6,23,7],[23,9,23,10],[24,6,24,7]]}
[]
[]
[]
[{"$nulls":4},"FIGURE PIANE"]
[null,null,"Diagonale minore"]
[{"$nulls":4},"Altezza"]
[]
[null,"      Lato"]
[]
[]
[null,"Diagonale maggiore"]
[]
[]
[{"$nulls":6},"Inserisci la DIAGONALE min.",null,20]
[null,null,"ROMBO",{"$nulls":6},"AREA = ",null,{"$f":"I14*I16/2","v":300}]
[{"$nulls":6},"Inserisci la DIAGONALE magg.",null,30]
[]
[null,null,"L'AREA è uguale alla DIAGONALE minore*DIAGONALE maggiore/2"]
[]
[null,null,"La DIAGONALE minore è uguale 2*AREA/DIAGONALE maggiore",{"$nulls":5},{"$f":"2*L15/I16","v":20}]
[null,null,"La DIAGONALE maggiore è uguale 2*AREA/DIAGONALE minore",{"$nulls":5},{"$f":"2*L15/I14","v":30}]
[]
[]
[null,null,"ROMBO",{"$nulls":3},"Inserisci il LATO",null,25,"PERIMETRO =",null,{"$f":"I24*4","v":100}]
[]
[null,null,"Il PERIMETRO è uguale al LATO*4"]
[]
[null,null,"Il LATO è uguale al PERIMETRO/4",{"$nulls":5},{"$f":"L24/4","v":25}]
[null,null,"l'ALTEZZA è uguale all'AREA/LATO",{"$nulls":5},{"$f":"L15/I24","v":12}]

{"sheet":"Triangolo","index":6,"n_rows":27,"n_cols":12,"rows_kept":27,"merged":[[3,4,3,8],[11,6,11,7],[12,2,12,5],[12,9,12,10],[13,6,13,7],[23,2,23,5],[23,6,23,7],[23,9,23,10],[24,6,24,7]]}
[]
[]
[]
[{"$nulls":4},"FIGURE PIANE"]
[]
[null,"Lato",null,"  Altezza"]
[]
[]
[]
[null,null,"Base"]
[]
[{"$nulls":6},"Inserisci la BASE",null,30]
[null,null,"TRIANGOLO EQUILATERO",{"$nulls":6},"AREA = ",null,{"$f":"(I12*I14)/2","v":600}]
[{"$nulls":6},"Inserisci l'ALTEZZA",null,40]
[]
[null,null,"L'AREA è uguale alla BASE*ALTEZZA/2"]
[]
[null,null,"L'ALTEZZA è uguale a 2*AREA/BASE",{"$nulls":5},{"$f":"2*L13/I12","v":40}]
[null,null,"La BASE è uguale a 2*AREA/ALTEZZA",{"$nulls":5},{"$f":"2*L13/I14","v":30}]
[]
[]
[]
[]
[null,null,"TRIANGOLO EQUILATERO",{"$nulls":3},"Inserisci il LATO",null,45,"PERIMETRO =",null,{"$f":"I24*3","v":135}]
[]
[]
[null,null,"Il PERIMETRO è uguale al LATO*3"]

{"sheet":"Pentagono","index":7,"n_rows":27,"n_cols":12,"rows_kept":27,"merged":[[3,5,3,10],[12,2,12,5],[12,6,12,7],[12,9,12,10],[22,2,22,5],[22,6,22,7],[22,9,22,10]]}
[]
[]
[]
[{"$nulls":5},"FIGURE PIANE"]
[null,"Lato"]
[]
[]
[]
[]
[]
[{"$nulls":3},"Apotema"]
[]
[null,null,"PENTAGONO REGOLARE",{"$nulls":3},"Inserisci il LATO",null,20,"PERIMETRO =",null,{"$f":"I13*5","v":100}]
[]
[null,null,"Il PERIMETRO è uguale al LATO*5"]
{"$rows_empty":7}
[null,null,"PENTAGONO REGOLARE",{"$nulls":3},"APOTEMA =",null,{"$f":"I13*0.688","v":13.759999999999998},"AREA = ",null,{"$f":"(L13*I23)/2","v":687.9999999999999}]
[]
[null,null,"L'AREA è uguale al PERIMETRO*APOTEMA/2"]
[]
[null,null,"L'APOTEMA è uguale al LATO*0,688 (0,688 è un numero fisso)"]

{"sheet":"Esagono","index":8,"n_rows":25,"n_cols":12,"rows_kept":25,"merged":[[3,5,3,10],[12,2,12,5],[12,6,12,7],[12,9,12,10],[21,2,21,5],[21,6,21,7],[21,9,21,10]]}
[]
[]
[]
[{"$nulls":5},"FIGURE PIANE"]
[{"$nulls":3},"Lato"]
[]
[]
[]
[]
[]
[{"$nulls":3},"Apotema"]
[]
[null,null,"ESAGONO REGOLARE",{"$nulls":3},"APOTEMA =",null,{"$f":"I22*0.866","v":21.65},"AREA = ",null,{"$f":"(L22*I13)/2","v":1623.75}]
[]
[]
[null,null,"L'APOTEMA è uguale al LATO*0,866 (0,866 è un numero fisso)"]
[]
[null,null,"L'AREA è uguale al PERIMETRO*APOTEMA/2"]
[]
[]
[]
[null,null,"ESAGONO REGOLARE",{"$nulls":3},"Inserisci il LATO",null,25,"PERIMETRO =",null,{"$f":"I22*6","v":150}]
[]
[]
[null,null,"Il PERIMETRO è uguale al LATO*6"]